bitfinex/quotes_BTCUSD_20260215
["timestamp","ask_amount","ask_price","bid_price","bid_amount"]
[1771157204297,0.02482816,70255.0,70243.0,0.00043261]
[1771157204654,0.07117277,70252.0,70246.0,0.0711777]
[1771157204856,0.09600155,70251.0,70246.0,0.0711777]
[1771157204999,0.0004,70249.0,70246.0,0.0711777]
[1771157205626,0.07117671,70248.0,70243.0,0.07181351]
[1771157205845,0.0004,70249.0,70243.0,0.07181351]
[1771157205846,0.07157734,70249.0,70244.0,0.07118012]
[1771157206328,0.07117647,70248.0,70244.0,0.07118012]
[1771157206526,0.0964055,70249.0,70244.0,0.07118012]
[1771157207152,0.07117652,70248.0,70243.0,0.07181351]
[1771157207356,0.07117793,70247.0,70243.0,0.00063261]
[1771157207674,0.02482816,70246.0,70243.0,0.00063261]
[1771157207876,0.28470824,70248.0,70243.0,0.00063261]
[1771157208183,0.07118045,70244.0,70243.0,0.00063261]
[1771157208565,0.09600861,70244.0,70243.0,0.00063261]
[1771157209216,0.02482816,70244.0,70237.0,0.2849488]
[1771157209427,0.02526051,70244.0,70240.0,0.0711842]
[1771157209645,0.07161319,70244.0,70239.0,0.07118533]
[1771157210218,0.00043235,70244.0,70237.0,0.0002]
[1771157210465,0.001,70248.0,70247.0,0.07117741]
[1771157210802,0.001,70248.0,70247.0,0.00012975]
[1771157211229,0.09640394,70249.0,70247.0,0.00012975]
[1771157211408,0.02482816,70248.0,70247.0,0.00012975]
[1771157212064,0.09600456,70248.0,70247.0,0.00012975]
[1771157214275,0.07117745,70247.0,70243.0,0.06419415]
[1771157214481,0.07130708,70247.0,70242.0,0.07118082]
[1771157214931,0.09613524,70247.0,70242.0,0.07118082]
[1771157215370,0.09613524,70247.0,70243.0,0.07118127]
[1771157215499,0.02495779,70247.0,70240.0,0.0002]
[1771157215699,0.02495779,70247.0,70245.0,0.0711792]
[1771157216893,0.02495779,70247.0,70244.0,0.07118033]
[1771157217811,0.07117985,70245.0,70240.0,0.07138397]
[1771157217988,0.02495779,70247.0,70240.0,0.0002]
[1771157218395,0.09613572,70247.0,70240.0,0.0002]
[1771157218945,0.09613572,70247.0,70242.0,0.07118208]
[1771157219497,0.09613572,70247.0,70243.0,0.07118145]
[1771157219708,0.07130756,70247.0,70243.0,0.07118145]
[1771157220154,0.00012963,70247.0,70241.0,0.07118349]
[1771157220334,0.00012963,70247.0,70246.0,0.07117843]
[1771157220730,0.28506968,70257.0,70249.0,0.07117454]
[1771157220942,0.07117072,70254.0,70248.0,0.07117471]
[1771157221161,0.07116965,70255.0,70249.0,0.07117525]
[1771157221373,0.28467346,70256.0,70248.0,0.07117472]
[1771157221518,0.07117092,70254.0,70249.0,0.07117509]
[1771157221741,0.0004,70257.0,70251.0,0.0711729]
[1771157221937,0.07156752,70257.0,70252.0,0.07117165]
[1771157222140,0.07156729,70257.0,70252.0,0.07117165]
[1771157222333,0.0004,70254.0,70251.0,0.07117169]
[1771157222580,0.0004,70254.0,70253.0,0.07117133]
[1771157223031,0.0004,70254.0,70247.0,0.07117741]
[1771157223214,1e-08,70262.0,70250.0,4e-05]
[1771157223462,0.07156064,70264.0,70258.0,0.07116566]
[1771157223668,0.07166538,70264.0,70259.0,0.07116513]
[1771157223871,0.02482816,70260.0,70255.0,0.07116886]
[1771157224086,0.07116373,70261.0,70256.0,0.07116807]
[1771157224559,0.07116432,70260.0,70255.0,0.07116886]
[1771157224773,0.07116693,70258.0,70252.0,0.07117066]
[1771157224988,0.07116693,70259.0,70254.0,0.07116995]
[1771157225405,0.09599448,70258.0,70253.0,0.07117098]
[1771157225626,0.07116973,70255.0,70250.0,0.07121433]
[1771157225832,0.07117033,70254.0,70250.0,4e-05]
[1771157226038,0.02482816,70253.0,70249.0,0.07013941]
[1771157226252,0.30951714,70253.0,70240.0,0.0002]
[1771157226462,0.02482816,70249.0,70245.0,0.07117933]
[1771157226691,0.02482816,70249.0,70244.0,0.07117987]
[1771157226902,0.02482816,70249.0,70245.0,0.07117904]
[1771157227140,0.07117526,70251.0,70246.0,0.07117835]
[1771157227357,0.09600342,70251.0,70246.0,0.07117835]
[1771157227557,0.0001685,70257.0,70240.0,0.0002]
[1771157227558,0.07115655,70268.0,70259.0,0.07116525]
[1771157227768,0.07115655,70268.0,70262.0,0.07101278]
[1771157227974,0.07132703,70266.0,70260.0,0.07116404]
[1771157228184,0.0001685,70266.0,70256.0,0.02448388]
[1771157228423,0.0001685,70266.0,70259.0,0.07116435]
[1771157228627,0.07166564,70264.0,70259.0,0.07116505]
[1771157228832,0.00050474,70264.0,70260.0,0.0711639]
[1771157229244,0.00050474,70264.0,70263.0,0.0711612]
[1771157229665,0.00050474,70264.0,70261.0,0.07116261]
[1771157230087,0.00050474,70264.0,70262.0,0.07116198]
[1771157230658,0.00050474,70264.0,70262.0,0.09564586]
[1771157230804,0.00050474,70264.0,70262.0,0.02448388]
[1771157231014,0.00050474,70264.0,70261.0,0.07116223]
[1771157232279,0.00050474,70264.0,70262.0,0.07116209]
[1771157233160,0.0004,70269.0,70265.0,0.07115918]
[1771157233383,0.0004,70269.0,70266.0,0.07115765]
[1771157233612,0.0004,70269.0,70265.0,0.07115918]
[1771157235455,0.0004,70269.0,70266.0,0.07115767]
[1771157235583,0.28500172,70274.0,70263.0,0.28464331]
[1771157235584,0.0004,70274.0,70265.0,0.02362026]
[1771157235936,0.07155007,70274.0,70269.0,0.07115467]
[1771157236890,0.0004,70274.0,70270.0,0.07115369]
[1771157237098,0.07155053,70274.0,70269.0,0.07115441]
[1771157237730,0.0004,70272.0,70269.0,0.07115441]
[1771157238353,0.0004,70272.0,70271.0,0.0711531]
[1771157238553,0.0004,70272.0,70270.0,0.07115369]
[1771157239965,0.07114961,70275.0,70270.0,0.07115369]
[1771157239966,0.02440809,70297.0,70270.0,4e-05]
[1771157240163,0.07113733,70287.0,70282.0,0.0711414]
[1771157240380,0.07114046,70284.0,70279.0,0.07114467]
[1771157241002,0.07114131,70283.0,70278.0,0.07114575]
[1771157241170,0.07114046,70284.0,70278.0,0.07114575]
[1771157241378,0.07114046,70284.0,70279.0,0.07114499]
[1771157241783,0.30898543,70290.0,70289.0,0.07113488]
[1771157241784,4e-05,70290.0,70289.0,0.07113488]
[1771157241996,0.00016985,70290.0,70288.0,0.07113519]
[1771157242204,4e-05,70300.0,70281.0,0.15216656]
[1771157242412,0.07112622,70298.0,70292.0,0.07113161]
[1771157242612,0.07112722,70297.0,70291.0,0.07113238]
[1771157242999,4e-05,70300.0,70286.0,0.02362026]
[1771157243000,0.07113405,70290.0,70286.0,0.02362026]
[1771157243235,0.14281863,70299.0,70281.0,0.00012985]
[1771157243444,0.14281863,70285.0,70281.0,0.07127218]
[1771157243669,0.2845201,70294.0,70281.0,0.07127218]
[1771157243670,0.02440809,70284.0,70281.0,0.00012985]
[1771157243906,0.07114171,70283.0,70277.0,0.07114636]
[1771157244138,0.07114505,70279.0,70274.0,0.07114961]
[1771157244372,0.00012978,70279.0,70276.0,0.07114761]
[1771157244585,0.00012978,70279.0,70277.0,0.07114652]
[1771157244794,0.00012978,70279.0,70276.0,0.07114761]
[1771157245015,0.00012978,70279.0,70277.0,0.07114684]
[1771157245226,0.00012978,70279.0,70278.0,0.07114602]
[1771157245866,0.00012978,70279.0,70277.0,0.07114684]
[1771157246114,0.00012978,70279.0,70270.0,4e-05]
[1771157246317,0.09568342,70279.0,70273.0,0.07115007]
[1771157246525,0.07114603,70278.0,70270.0,4e-05]
[1771157246727,0.07114603,70278.0,70273.0,0.07115046]
[1771157246939,0.02440809,70277.0,70273.0,0.07115046]
[1771157247142,0.07127677,70279.0,70274.0,0.07114995]
[1771157247384,0.09568486,70279.0,70273.0,0.07115046]
[1771157247575,0.07114623,70278.0,70273.0,0.07115046]
[1771157247782,0.07114718,70277.0,70272.0,0.07115042]
[1771157248089,0.07114718,70277.0,70270.0,0.28465638]
[1771157248090,0.02453787,70279.0,70273.0,0.07115107]
[1771157248510,0.09568357,70279.0,70273.0,0.07115107]
[1771157248731,0.07114668,70278.0,70273.0,0.07115107]
[1771157248928,0.07114668,70278.0,70273.0,0.0711506]
[1771157249518,0.02453787,70279.0,70266.0,0.07115719]
[1771157249752,0.02440809,70275.0,70260.0,0.28469344]
[1771157249960,0.14281863,70274.0,70260.0,4e-05]
[1771157250166,0.07115817,70266.0,70265.0,0.07115937]
[1771157250373,0.14281863,70274.0,70261.0,0.07116222]
[1771157250578,0.02440809,70270.0,70266.0,0.07115779]
[1771157250783,0.07115227,70272.0,70260.0,4e-05]
[1771157250784,0.07115768,70267.0,70260.0,0.07120249]
[1771157250995,0.07115768,70268.0,70262.0,0.07116198]
[1771157251198,0.02440809,70271.0,70266.0,0.07115746]
[1771157251400,0.02440809,70271.0,70267.0,0.07115698]
[1771157251813,0.07115708,70268.0,70262.0,0.0711617]
[1771157252026,0.07115737,70267.0,70261.0,0.07116256]
[1771157252233,0.0711561,70266.0,70261.0,0.07116256]
[1771157252447,0.0711561,70266.0,70262.0,0.07116147]
[1771157252649,0.0711561,70266.0,70265.0,0.07115918]
[1771157253062,0.0711561,70266.0,70262.0,0.07136151]
[1771157253688,0.0711561,70266.0,70263.0,0.0711612]
[1771157254307,0.0711561,70266.0,70262.0,0.07136162]
[1771157256056,0.0711561,70266.0,70255.0,0.0002]
[1771157256548,0.07116405,70261.0,70255.0,0.07136868]
[1771157256811,0.09557214,70261.0,70256.0,0.07116805]
[1771157257081,1e-08,70259.0,70255.0,0.0002]
[1771157257504,1e-08,70259.0,70258.0,0.07116627]
[1771157258875,1e-08,70259.0,70257.0,0.0002753]
[1771157259735,0.07116556,70259.0,70257.0,0.0002753]
[1771157259917,0.07116627,70258.0,70257.0,0.0002753]
[1771157260865,0.09557436,70258.0,70257.0,0.0002753]
[1771157261073,0.02440809,70258.0,70257.0,0.0002753]
[1771157261270,1e-08,70259.0,70257.0,0.07144255]
[1771157261478,1e-08,70259.0,70257.0,0.07164255]
[1771157263297,1e-08,70259.0,70257.0,0.0004753]
[1771157263502,0.07116627,70258.0,70257.0,0.0004753]
[1771157263704,1e-08,70259.0,70254.0,0.0002]
[1771157263705,0.07116829,70256.0,70254.0,0.0002]
[1771157264298,0.07116829,70256.0,70254.0,5.113e-05]
[1771157264557,0.09473146,70257.0,70254.0,5.113e-05]
[1771157264746,0.02356381,70257.0,70254.0,5.113e-05]
[1771157265091,0.07216528,70259.0,70254.0,0.07132591]
[1771157265218,0.09472909,70259.0,70254.0,0.07132591]
[1771157265426,0.02356381,70256.0,70254.0,0.00015587]
[1771157265612,0.02356381,70256.0,70249.0,0.07137486]
[1771157265816,0.07117056,70254.0,70249.0,0.07137486]
[1771157266012,0.07116994,70255.0,70249.0,0.07137486]
[1771157266252,0.07117041,70254.0,70249.0,0.07137486]
[1771157266772,0.07116994,70255.0,70250.0,0.07117418]
[1771157267190,0.02356381,70257.0,70253.0,0.07117121]
[1771157267383,0.07116678,70258.0,70253.0,0.07117121]
[1771157267594,0.07116628,70259.0,70249.0,0.0002]
[1771157267798,0.02356382,70259.0,70249.0,0.0002]
[1771157268007,0.02356382,70259.0,70250.0,0.07117425]
[1771157268211,0.0711697,70255.0,70250.0,0.07117396]
[1771157268999,0.07117034,70254.0,70250.0,0.07117396]
[1771157269198,0.02356382,70259.0,70249.0,0.0002]
[1771157269381,0.07116959,70255.0,70250.0,0.07117381]
[1771157269764,0.07116959,70255.0,70249.0,0.07137437]
[1771157269765,0.07116742,70257.0,70252.0,0.07117156]
[1771157270054,0.07116684,70258.0,70253.0,0.07117105]
[1771157270538,0.07116684,70258.0,70250.0,0.07117386]
[1771157270780,0.07116993,70255.0,70249.0,0.07137487]
[1771157271044,0.09473009,70259.0,70249.0,0.07137487]
[1771157271269,0.0711696,70255.0,70250.0,0.07117382]
[1771157271468,0.0711696,70255.0,70249.0,0.07137487]
[1771157271679,0.07117158,70253.0,70249.0,0.0002]
[1771157272116,0.07117083,70254.0,70249.0,0.07137515]
[1771157272741,0.07117083,70254.0,70253.0,0.0002]
[1771157273291,0.07117113,70255.0,70253.0,0.00016]
[1771157273503,0.07117033,70254.0,70249.0,0.0002]
[1771157273664,0.02356381,70257.0,70249.0,0.0002]
[1771157273881,0.07116674,70258.0,70249.0,0.0002]
[1771157274098,0.07116674,70258.0,70253.0,0.07117113]
[1771157274300,1e-08,70259.0,70249.0,0.0002]
[1771157274499,1e-08,70259.0,70258.0,0.07116627]
[1771157275114,1e-08,70259.0,70256.0,0.07116765]
[1771157276225,1e-08,70259.0,70257.0,0.07116709]
[1771157276426,1e-08,70259.0,70256.0,0.07101896]
[1771157277158,1e-08,70259.0,70256.0,0.0708703]
[1771157278477,1e-08,70259.0,70256.0,0.05191559]
[1771157278912,1e-08,70259.0,70257.0,0.07116688]
[1771157279322,1e-08,70259.0,70256.0,0.05191559]
[1771157279730,1e-08,70259.0,70256.0,0.0517669]
[1771157280887,1e-08,70261.0,70256.0,0.0519669]
[1771157281090,1e-08,70261.0,70258.0,0.02417257]
[1771157281301,0.07124942,70261.0,70258.0,0.02417257]
[1771157281525,0.07124942,70261.0,70256.0,0.07628811]
[1771157281731,0.07124942,70261.0,70256.0,0.0519669]
[1771157282579,0.07116464,70260.0,70256.0,0.0002]
[1771157282795,0.07116635,70258.0,70256.0,0.0002]
[1771157283016,0.07116728,70257.0,70256.0,0.0002]
[1771157283232,0.07116635,70258.0,70256.0,0.0002]
[1771157283694,0.07116599,70260.0,70256.0,0.0002]
[1771157283909,8.617e-05,70261.0,70256.0,0.0002]
[1771157284329,0.07116597,70259.0,70256.0,0.0002]
[1771157284793,0.07116602,70260.0,70256.0,0.0002]
[1771157285025,0.07116562,70259.0,70256.0,0.0002]
[1771157285687,0.07116635,70258.0,70256.0,0.00162336]
[1771157285902,0.07116635,70258.0,70256.0,0.0002]
[1771157286126,0.02356381,70260.0,70249.0,0.0002]
[1771157286357,0.07117164,70253.0,70249.0,0.0002]
[1771157287729,0.07117276,70252.0,70249.0,0.0002]
[1771157287962,0.07117164,70253.0,70249.0,0.0002]
[1771157288381,4e-05,70250.0,70249.0,0.0002]
[1771157289020,4e-05,70250.0,70249.0,0.07137539]
[1771157289233,4e-05,70250.0,70247.0,0.07117572]
[1771157289446,4e-05,70250.0,70248.0,0.0711761]
[1771157291116,0.00036117,70249.0,70248.0,0.0711761]
[1771157291970,0.02356381,70259.0,70246.0,0.0002]
[1771157292177,0.07116874,70256.0,70251.0,0.07117307]
[1771157292388,0.02356381,70256.0,70252.0,0.07117195]
[1771157292607,0.09473226,70256.0,70251.0,0.07117307]
[1771157293628,0.07116948,70255.0,70250.0,0.07117265]
[1771157294239,0.07116937,70255.0,70251.0,0.07117297]
[1771157295066,0.07116948,70255.0,70250.0,0.07117265]
[1771157296568,0.07116948,70255.0,70251.0,0.0002]
[1771157296800,0.0711708,70254.0,70251.0,0.0002]
[1771157296996,0.07117176,70253.0,70251.0,0.0002]
[1771157297208,0.0711708,70254.0,70251.0,0.0002]
[1771157297766,0.07117102,70255.0,70251.0,0.0002]
[1771157298884,0.00142347,70256.0,70243.0,0.0004553]
[1771157299233,0.07117978,70245.0,70243.0,0.0004553]
[1771157299465,0.07118045,70244.0,70243.0,0.0004553]
[1771157300364,8.617e-05,70261.0,70243.0,0.0004553]
[1771157300513,0.07117147,70253.0,70247.0,0.07117712]
[1771157300715,0.07116982,70255.0,70250.0,0.02270799]
[1771157300927,0.07117491,70250.0,70244.0,0.07118018]
[1771157301293,0.07117491,70250.0,70245.0,0.09388737]
[1771157301493,0.07117491,70250.0,70245.0,0.07117938]
[1771157301701,0.0711764,70248.0,70246.0,0.02270799]
[1771157301876,0.07117724,70249.0,70243.0,0.07163621]
[1771157302050,0.07117724,70249.0,70244.0,0.07117999]
[1771157302255,0.28468226,70254.0,70244.0,0.07117999]
[1771157302256,0.07117781,70247.0,70244.0,0.0002633]
[1771157302458,0.07117714,70248.0,70244.0,0.0002633]
[1771157302896,0.07117712,70249.0,70244.0,0.0002633]
[1771157304027,0.07117662,70248.0,70244.0,0.0002633]
[1771157304244,0.07117662,70248.0,70245.0,0.0002]
[1771157305352,0.07117662,70248.0,70245.0,0.0004633]
[1771157305941,0.07117843,70246.0,70245.0,0.0004633]
[1771157307051,0.07117783,70247.0,70245.0,0.0004633]
[1771157310996,0.07117843,70246.0,70245.0,0.0004633]
[1771157314864,0.12735867,70245.0,70244.0,0.0002]
[1771157315006,0.05617923,70245.0,70244.0,0.0002]
[1771157315415,0.12735867,70245.0,70244.0,0.0002]
[1771157317120,0.05617923,70245.0,70244.0,0.0002]
[1771157317550,0.12735867,70245.0,70244.0,0.0002]
[1771157318166,0.12735867,70245.0,70240.0,0.07138277]
[1771157318167,2e-08,70239.0,70234.0,0.04489403]
[1771157318336,2e-08,70239.0,70237.0,0.0713872]
[1771157318594,2e-08,70239.0,70237.0,0.0002]
[1771157319130,2e-08,70240.0,70237.0,0.0002]
[1771157319326,9.231e-05,70240.0,70237.0,0.0002]
[1771157321194,0.07118407,70241.0,70237.0,0.0002]
[1771157321396,0.07118407,70241.0,70237.0,0.00032963]
[1771157324016,1.0,70250.0,70248.0,0.07117597]
[1771157324224,1.0,70250.0,70249.0,0.07117539]
[1771157324681,1.0,70250.0,70249.0,0.09417004]
[1771157326341,1.0,70250.0,70249.0,0.07117539]
[1771157327003,0.2946164,70250.0,70249.0,0.07117539]
[1771157327266,0.21397854,70250.0,70249.0,0.07117539]
[1771157327486,0.21397854,70250.0,70249.0,0.09417004]
[1771157328810,0.21437854,70250.0,70249.0,0.09417004]
[1771157330579,0.00142347,70255.0,70253.0,0.07117084]
[1771157330793,0.0004,70258.0,70253.0,0.07117084]
[1771157330794,0.07156678,70258.0,70253.0,0.07117084]
[1771157331635,0.07156678,70258.0,70252.0,0.07117062]
[1771157331843,0.07116743,70257.0,70252.0,0.07117062]
[1771157333382,4e-05,70250.0,70241.0,0.28473133]
[1771157333583,4e-05,70250.0,70248.0,0.07117636]
[1771157334770,4e-05,70250.0,70247.0,0.07117643]
[1771157335815,4e-05,70250.0,70248.0,0.07117636]
[1771157336418,0.00044,70250.0,70248.0,0.07117636]
[1771157336976,0.00044,70250.0,70247.0,0.07117643]
[1771157337146,0.00044,70250.0,70246.0,0.07117677]
[1771157340111,0.00044,70250.0,70241.0,0.07118277]
[1771157340318,0.15881421,70249.0,70241.0,0.07118277]
[1771157340533,0.07117869,70246.0,70241.0,0.07118277]
[1771157341256,0.07117756,70247.0,70241.0,0.07118277]
[1771157341669,0.07117756,70247.0,70242.0,0.07118235]
[1771157342635,0.07117756,70247.0,70246.0,0.0002]
[1771157343202,0.07117756,70247.0,70242.0,0.07118235]
[1771157346226,0.07117756,70247.0,70242.0,0.094177]
[1771157346429,0.07117756,70247.0,70242.0,0.07118235]
[1771157346651,0.07117756,70247.0,70239.0,0.28474193]
[1771157346855,0.07117756,70247.0,70242.0,0.09417627]
[1771157348565,0.28513837,70250.0,70240.0,0.07118449]
[1771157348566,0.07117901,70246.0,70240.0,0.07118449]
[1771157348986,0.07117986,70245.0,70240.0,0.07118449]
[1771157349410,0.07117986,70245.0,70242.0,0.0002]
[1771157349869,0.07118147,70243.0,70242.0,0.0002]
[1771157350108,0.07118332,70242.0,70236.0,0.41202689]
[1771157350320,0.25365977,70242.0,70236.0,0.41202689]
[1771157350560,0.07118332,70242.0,70236.0,0.41202689]
[1771157350980,0.07118332,70242.0,70236.0,0.28862306]
[1771157351368,0.07118397,70241.0,70236.0,0.28862306]
[1771157354329,0.07118397,70241.0,70236.0,0.21743617]
[1771157354921,0.07118397,70241.0,70235.0,0.07118775]
[1771157355135,0.07118495,70240.0,70235.0,0.07118775]
[1771157356557,0.07118495,70240.0,70236.0,0.0002]
[1771157356972,0.07118559,70239.0,70236.0,0.0002]
[1771157357555,0.07118552,70239.0,70236.0,0.0002]
[1771157358538,0.07118703,70238.0,70236.0,0.0002]
[1771157359227,0.07118703,70238.0,70234.0,0.04509403]
[1771157359405,0.09494242,70237.0,70234.0,0.04509403]
[1771157359611,0.07118763,70237.0,70234.0,0.04509403]
[1771157359814,0.07118703,70238.0,70234.0,0.04509403]
[1771157360218,0.07118759,70237.0,70234.0,0.04509403]
[1771157360483,0.07118756,70237.0,70234.0,0.04509403]
[1771157360633,0.07118703,70238.0,70234.0,0.04509403]
[1771157360836,0.0711876,70237.0,70234.0,0.04509403]
[1771157361042,0.07118703,70238.0,70234.0,0.07009403]
[1771157361679,0.07118703,70238.0,70234.0,0.14128461]
[1771157362117,0.07118627,70239.0,70234.0,0.14128461]
[1771157362710,0.07118627,70239.0,70234.0,0.11628461]
[1771157363321,0.07118627,70239.0,70234.0,0.11624461]
[1771157363718,0.07118627,70239.0,70234.0,0.04505403]
[1771157363919,0.07118627,70239.0,70234.0,0.11624417]
[1771157364159,0.07118717,70238.0,70234.0,0.04505403]
[1771157364366,0.07118627,70239.0,70234.0,0.04505403]
[1771157364545,0.07118682,70238.0,70234.0,0.04505403]
[1771157364715,0.05909582,70238.0,70234.0,0.07005403]
[1771157365956,0.07118798,70237.0,70234.0,0.07005403]
[1771157366142,0.05909582,70238.0,70234.0,0.07005403]
[1771157366359,0.05909582,70238.0,70234.0,0.04505403]
[1771157366588,0.0004,70266.0,70234.0,0.04505403]
[1771157366794,0.02852773,70245.0,70239.0,0.09513185]
[1771157367552,0.07158021,70246.0,70239.0,0.09513185]
[1771157367760,0.0004,70246.0,70244.0,0.07117967]
[1771157368006,0.0004,70246.0,70243.0,0.07118099]
[1771157368817,0.0004,70246.0,70244.0,0.025]
[1771157369018,0.0004,70246.0,70244.0,0.0226412]
[1771157369875,0.0004,70246.0,70240.0,0.36482716]
[1771157370092,0.07158018,70246.0,70240.0,0.43601101]
[1771157370295,0.07117959,70245.0,70240.0,0.36482716]
[1771157370725,0.07158002,70246.0,70240.0,0.41206426]
[1771157371153,0.07158002,70246.0,70235.0,0.07118906]
[1771157371154,0.07117944,70245.0,70235.0,0.07118906]
[1771157371365,0.07118311,70242.0,70238.0,0.34088]
[1771157371584,0.09493892,70241.0,70236.0,0.0711882]
[1771157371804,0.02375479,70241.0,70236.0,0.0711882]
[1771157372021,0.28472285,70244.0,70234.0,0.04505403]
[1771157372022,0.07118045,70244.0,70234.0,0.04505403]
[1771157372245,0.07118688,70238.0,70234.0,0.04505403]
[1771157372469,0.07117997,70245.0,70239.0,0.07118545]
[1771157372714,0.07117953,70245.0,70239.0,0.07118545]
[1771157373157,0.07117953,70245.0,70240.0,0.07118418]
[1771157373364,0.07118066,70244.0,70239.0,0.07118545]
[1771157373579,0.07118066,70244.0,70238.0,0.07118482]
[1771157373787,0.07260413,70244.0,70239.0,0.07118526]
[1771157374005,0.07118621,70239.0,70234.0,0.04505403]
[1771157374875,0.09494136,70238.0,70234.0,0.04505403]
[1771157375086,0.02375479,70238.0,70234.0,0.04505403]
[1771157375959,0.02375479,70238.0,70234.0,0.11624454]
[1771157376178,0.07118202,70243.0,70237.0,0.07118755]
[1771157376386,0.07260549,70243.0,70237.0,0.07118755]
[1771157376602,0.16301291,70241.0,70231.0,0.0002]
[1771157376785,0.07118797,70237.0,70232.0,0.0711922]
[1771157377037,0.02375479,70240.0,70227.0,0.25300567]
[1771157377242,0.09493979,70240.0,70234.0,0.07119032]
[1771157377650,0.071185,70240.0,70234.0,0.07119032]
[1771157377867,0.07118372,70241.0,70235.0,0.07118921]
[1771157378072,0.07118372,70241.0,70236.0,0.07118807]
[1771157378281,0.07118372,70241.0,70235.0,0.04556208]
[1771157378483,0.07118455,70240.0,70235.0,0.04556208]
[1771157378697,0.0711857,70239.0,70234.0,0.07118896]
[1771157379381,0.07122455,70240.0,70234.0,0.07104058]
[1771157380527,0.0711857,70239.0,70234.0,0.07104058]
[1771157382204,0.07118725,70238.0,70233.0,0.0711911]
[1771157382426,0.07118779,70237.0,70232.0,0.07119231]
[1771157382618,0.09494204,70238.0,70232.0,0.07119231]
[1771157382816,0.07118794,70237.0,70231.0,0.07119315]
[1771157383030,0.07118827,70238.0,70232.0,0.07119202]
[1771157383242,0.09487063,70238.0,70233.0,0.07119155]
[1771157383593,0.07118827,70238.0,70234.0,0.0002]
[1771157383707,0.02368236,70236.0,70234.0,0.0002]
[1771157384117,0.07118827,70238.0,70234.0,0.0002]
[1771157384118,0.09487063,70238.0,70234.0,0.0002]
[1771157384790,0.07118827,70238.0,70234.0,0.0002]
[1771157385203,0.07158718,70239.0,70234.0,0.07139006]
[1771157385413,0.0004,70239.0,70234.0,0.07139006]
[1771157385629,0.07158616,70239.0,70234.0,0.07139006]
[1771157385800,0.07118671,70238.0,70234.0,0.0002]
[1771157387790,0.02368236,70237.0,70234.0,0.0002]
[1771157388121,0.00044,70250.0,70244.0,0.07118045]
[1771157388333,0.00044,70250.0,70242.0,0.07118185]
[1771157388542,0.00044,70250.0,70243.0,0.07118094]
[1771157388756,0.07118102,70244.0,70238.0,0.07118592]
[1771157388966,0.07117951,70245.0,70240.0,0.07118448]
[1771157389180,0.00142347,70244.0,70234.0,0.28495831]
[1771157389376,0.07260423,70244.0,70238.0,0.0711859]
[1771157389586,0.07118184,70243.0,70238.0,0.0711859]
[1771157390441,0.07260423,70244.0,70238.0,0.0711859]
[1771157390959,0.00142347,70244.0,70241.0,0.07118287]
[1771157391156,0.07157805,70247.0,70242.0,0.07118217]
[1771157391360,0.00142347,70246.0,70243.0,0.07118114]
[1771157391568,0.07157802,70247.0,70241.0,0.07118184]
[1771157391779,0.0726019,70246.0,70241.0,0.07118184]
[1771157392021,0.00142347,70246.0,70242.0,0.07118199]
[1771157392436,0.0004,70245.0,70242.0,0.07118199]
[1771157393682,0.0004,70245.0,70241.0,0.07118184]
[1771157393892,0.0004,70245.0,70240.0,0.07118282]
[1771157394324,0.0004,70245.0,70241.0,0.07118301]
[1771157394531,0.0004,70245.0,70243.0,0.07118087]
[1771157395699,0.0004,70298.0,70251.0,0.07117239]
[1771157395700,0.0006081,70254.0,70251.0,0.07117239]
[1771157395914,0.0006081,70254.0,70249.0,0.07117461]
[1771157396613,0.07177853,70254.0,70248.0,0.07117461]
[1771157396811,0.07177853,70254.0,70249.0,0.07117536]
[1771157397045,0.07177853,70254.0,70248.0,0.07117461]
[1771157397242,0.07177853,70254.0,70249.0,0.07117524]
[1771157397846,0.07117372,70251.0,70246.0,0.0711781]
[1771157398289,0.07117464,70250.0,70245.0,0.07117878]
[1771157399332,0.07117237,70252.0,70246.0,0.07117817]
[1771157399465,0.09525392,70253.0,70248.0,0.07117594]
[1771157399676,0.09525392,70253.0,70247.0,0.07117671]
[1771157400516,0.09525392,70253.0,70248.0,0.07117638]
[1771157400718,0.0004,70253.0,70243.0,0.025]
[1771157400876,0.0004,70253.0,70250.0,0.07117357]
[1771157401439,0.0004,70253.0,70247.0,0.07117648]
[1771157401601,0.0004,70253.0,70236.0,0.07118775]
[1771157401602,0.07118339,70242.0,70236.0,0.07118775]
[1771157401807,0.071183,70242.0,70237.0,0.07118754]
[1771157402014,0.16538461,70245.0,70234.0,0.07119011]
[1771157402015,0.07118484,70240.0,70234.0,0.07119011]
[1771157402215,0.07118484,70240.0,70230.0,4e-05]
[1771157402216,0.07118318,70242.0,70235.0,0.07118889]
[1771157402395,0.07118096,70244.0,70231.0,0.28477286]
[1771157402761,0.02368236,70244.0,70230.0,4e-05]
[1771157403036,0.28472182,70245.0,70226.0,0.0002]
[1771157403037,0.02368236,70238.0,70234.0,0.07119018]
[1771157403288,0.02368236,70238.0,70226.0,0.28499301]
[1771157403289,0.02368236,70238.0,70228.0,0.07119667]
[1771157403462,0.02368236,70238.0,70228.0,0.28478669]
[1771157403635,0.02368236,70238.0,70234.0,0.07119022]
[1771157403837,0.09486939,70238.0,70232.0,0.0711919]
[1771157404038,0.02368236,70238.0,70233.0,0.07119101]
[1771157404209,0.02368236,70238.0,70232.0,0.0711919]
[1771157404412,0.02368236,70238.0,70233.0,0.071191]
[1771157404633,0.07118708,70238.0,70233.0,0.07119148]
[1771157404889,0.07118611,70239.0,70230.0,0.28477662]
[1771157405106,0.0711866,70238.0,70233.0,0.07119093]
[1771157405305,0.07118611,70239.0,70233.0,0.07119093]
[1771157405465,0.07118472,70240.0,70234.0,0.07119048]
[1771157405668,0.07118472,70240.0,70233.0,0.07119093]
[1771157405890,0.07118472,70240.0,70234.0,0.07119052]
[1771157406092,0.07118472,70240.0,70235.0,0.07118954]
[1771157406290,0.16538461,70245.0,70228.0,0.07119645]
[1771157406490,0.07118716,70238.0,70228.0,0.025]
[1771157406724,0.07118787,70237.0,70231.0,0.07119347]
[1771157406918,0.07118857,70236.0,70231.0,0.07119347]
[1771157407081,0.07118661,70238.0,70232.0,0.07119259]
[1771157407293,0.07118786,70237.0,70231.0,0.07119203]
[1771157407540,0.07118661,70238.0,70232.0,0.07119241]
[1771157407741,0.07118773,70237.0,70232.0,0.07119241]
[1771157407912,0.28473871,70240.0,70235.0,0.07118927]
[1771157407913,0.07118493,70240.0,70235.0,0.07118927]
[1771157408113,0.07118593,70239.0,70229.0,0.02477619]
[1771157408318,0.07118593,70239.0,70233.0,0.07115082]
[1771157409628,0.07118611,70240.0,70234.0,0.07119027]
[1771157409880,0.07118611,70240.0,70235.0,0.07118939]
[1771157410086,0.07117953,70245.0,70237.0,0.07118755]
[1771157410292,0.07117968,70245.0,70232.0,0.15388448]
[1771157410501,0.0004,70246.0,70243.0,0.07118054]
[1771157410678,0.0864058,70248.0,70241.0,0.07118349]
[1771157410679,0.0864055,70248.0,70241.0,0.07118349]